bitfinex/quotes_SOLUSD_20220306
["timestamp","ask_amount","ask_price","bid_price","bid_amount"]
[1646566857466,24.5419,86.634,86.571,17.1844]
[1646566857669,24.5419,86.634,86.572,5.773]
[1646566858069,24.5419,86.634,86.58,17.3284]
[1646566859068,5.773,86.633,86.58,17.3284]
[1646566860972,5.773,86.633,86.571,17.1844]
[1646566861170,6.31625005,86.632,86.563,22.5101]
[1646566861372,5.773,86.631,86.563,22.5101]
[1646566861569,6.31625005,86.63,86.563,22.5101]
[1646566861771,5.773,86.629,86.563,22.5101]
[1646566861971,6.31625005,86.628,86.563,22.5101]
[1646566862272,116.1,86.627,86.563,22.5101]
[1646566862470,5.774,86.626,86.563,22.5101]
[1646566862670,6.31625005,86.625,86.563,22.5101]
[1646566863071,24.7875,86.624,86.563,22.5101]
[1646566863271,6.31625005,86.623,86.563,22.5101]
[1646566863673,116.1,86.622,86.553,5.774]
[1646566863872,116.1,86.622,86.544,5.774]
[1646566863873,3.14428955,86.614,86.544,5.774]
[1646566864074,3.14428955,86.612,86.544,5.774]
[1646566864272,116.1,86.61,86.532,5.775]
[1646566864472,116.1,86.608,86.527,5.775]
[1646566864693,116.1,86.606,86.528,48.48775523]
[1646566864895,116.1,86.604,86.53,17.3382]
[1646566865194,116.1,86.602,86.53,17.3382]
[1646566865395,5.775,86.601,86.53,17.3382]
[1646566865795,5.775,86.601,86.516,5.775]
[1646566866000,116.1,86.599,86.511,13.56658241]
[1646566866197,23.65867818,86.6,86.512,5.776]
[1646566866198,3.14428955,86.592,86.512,5.776]
[1646566866398,3.14428955,86.59,86.499,24.57163736]
[1646566866597,3.14428955,86.59,86.494,21.29299771]
[1646566866598,116.1,86.581,86.5,5.777]
[1646566866798,116.1,86.577,86.495,5.777]
[1646566866997,5.777,86.576,86.495,5.777]
[1646566867198,5.777,86.576,86.49,5.777]
[1646566867799,5.777,86.576,86.489,59.06639956]
[1646566868001,116.1,86.569,86.49,17.3465]
[1646566868403,5.777,86.568,86.49,17.3465]
[1646566868801,116.1,86.566,86.49,17.3465]
[1646566868999,5.777,86.565,86.491,61.05299309]
[1646566869199,116.1,86.559,86.491,61.05299309]
[1646566869400,116.1,86.559,86.492,5.777]
[1646566870201,116.1,86.566,86.492,5.777]
[1646566870401,5.777,86.565,86.491,61.05299309]
[1646566871206,5.777,86.565,86.482,21.29299771]
[1646566871403,17.3479,86.56,86.478,5.777]
[1646566871605,121.879,86.559,86.47,5.779]
[1646566872008,124.54251201,86.559,86.47,5.779]
[1646566872904,118.76351201,86.558,86.47,5.779]
[1646566873103,116.1,86.539,86.47,5.779]
[1646566873303,116.1,86.535,86.47,5.779]
[1646566873503,5.78,86.534,86.47,5.779]
[1646566874306,116.1,86.529,86.47,5.779]
[1646566874506,5.78,86.528,86.47,5.779]
[1646566875105,5.78,86.528,86.447,13.56658241]
[1646566875306,116.1,86.526,86.447,13.56658241]
[1646566875506,116.1,86.519,86.447,13.56658241]
[1646566875709,5.781,86.518,86.447,13.56658241]
[1646566876108,5.781,86.518,86.448,47.95231428]
[1646566876507,5.781,86.518,86.447,13.56658241]
[1646566879108,5.781,86.518,86.45,17.3545]
[1646566879709,5.781,86.518,86.447,13.56658241]
[1646566880109,116.1,86.509,86.447,13.56658241]
[1646566880310,45.78891455,86.507,86.447,13.56658241]
[1646566880912,116.1,86.506,86.447,13.56658241]
[1646566881213,116.1,86.499,86.433,2.83613526]
[1646566881513,5.782,86.498,86.417,13.56086241]
[1646566881711,116.1,86.496,86.417,13.56086241]
[1646566881911,5.783,86.495,86.417,13.56086241]
[1646566882312,116.1,86.479,86.417,13.56086241]
[1646566882612,172.72995135,86.478,86.417,16.39699767]
[1646566884511,56.62995135,86.478,86.417,16.39699767]
[1646566884712,172.72995135,86.478,86.417,16.39699767]
[1646566885110,172.72995135,86.478,86.42,17.361]
[1646566886212,5.783,86.477,86.42,17.361]
[1646566887015,5.783,86.477,86.417,16.39699767]
[1646566887215,5.783,86.477,86.417,2.83613526]
[1646566887516,5.783,86.477,86.377,24.0282]
[1646566887517,5.783,86.477,86.394,2.83613526]
[1646566887716,116.1,86.475,86.394,2.83613526]
[1646566887916,5.784,86.474,86.394,2.83613526]
[1646566888117,5.784,86.474,86.395,57.78749259]
[1646566888318,17.3658,86.47,86.394,2.83613526]
[1646566888517,121.884,86.469,86.394,2.83613526]
[1646566889017,121.884,86.469,86.391,13.56086241]
[1646566889219,121.884,86.469,86.384,19.85803526]
[1646566889417,116.1,86.467,86.384,19.85803526]
[1646566889616,5.785,86.466,86.384,19.85803526]
[1646566890016,116.1,86.465,86.384,19.85803526]
[1646566890218,116.1,86.459,86.384,19.85803526]
[1646566890417,5.785,86.458,86.384,19.85803526]
[1646566890821,23.8709,86.466,86.385,22.57830402]
[1646566891118,23.8709,86.466,86.386,21.29299771]
[1646566891320,23.8709,86.466,86.39,17.367]
[1646566891724,23.8709,86.466,86.391,43.87130173]
[1646566891918,23.8709,86.466,86.391,61.65496607]
[1646566892119,23.8709,86.466,86.392,39.07666205]
[1646566892319,5.785,86.465,86.392,39.07666205]
[1646566892520,5.785,86.465,86.393,17.78366434]
[1646566892920,5.785,86.465,86.4,17.3627]
[1646566893424,5.785,86.465,86.401,17.78366434]
[1646566893919,5.785,86.465,86.402,17.78366434]
[1646566894119,23.8709,86.466,86.402,17.78366434]
[1646566894322,23.8709,86.466,86.403,17.78366434]
[1646566894719,23.8709,86.466,86.404,17.78366434]
[1646566895120,23.8709,86.466,86.392,24.1542]
[1646566895121,23.8709,86.466,86.41,17.3611]
[1646566895321,23.8709,86.466,86.411,12.19872375]
[1646566897625,23.8709,86.466,86.405,14.94752908]
[1646566898524,23.8709,86.466,86.406,59.77849953]
[1646566901429,23.8709,86.466,86.406,77.02469953]
[1646566902932,23.8709,86.466,86.41,17.3621]
[1646566903432,23.8709,86.466,86.411,5.784]
[1646566906157,23.8709,86.466,86.42,17.3604]
[1646566908159,1.57168515,86.477,86.421,2.83613526]
[1646566908360,17.3616,86.49,86.422,5.783]
[1646566908361,1.57168515,86.481,86.422,5.783]
[1646566908762,1.57168515,86.482,86.43,17.358]
[1646566909062,1.57168515,86.484,86.43,17.358]
[1646566909261,1.57168515,86.485,86.43,17.358]
[1646566909462,1.57168515,86.484,86.43,17.358]
[1646566909663,1.57168515,86.485,86.43,17.358]
[1646566910061,1.57168515,86.488,86.43,17.358]
[1646566910463,1.57168515,86.488,86.431,5.783]
[1646566910663,1.57168515,86.49,86.432,14.37984151]
[1646566910864,1.57168515,86.491,86.433,5.782]
[1646566911864,1.57168515,86.49,86.433,5.782]
[1646566912265,1.57168515,86.49,86.44,17.3557]
[1646566912468,1.57168515,86.503,86.44,17.3557]
[1646566912665,1.57168515,86.508,86.441,2.83613526]
[1646566912865,1.57168515,86.512,86.441,39.65749702]
[1646566913066,1.57168515,86.523,86.443,116.1]
[1646566913265,1.57168515,86.523,86.46,17.3454]
[1646566913464,1.57168515,86.531,86.461,116.1]
[1646566913665,1.57168515,86.544,86.461,130.68558284]
[1646566913865,1.57168515,86.55,86.462,4.7952944]
[1646566914068,1.57168515,86.552,86.463,116.1]
[1646566914269,1.57168515,86.557,86.465,116.1]
[1646566914471,1.57168515,86.558,86.472,5.62492925]
[1646566914671,1.57168515,86.561,86.472,5.62492925]
[1646566914866,1.57168515,86.561,86.481,121.61808084]
[1646566915069,1.57168515,86.562,86.481,121.61808084]
[1646566915267,1.57168515,86.563,86.483,57.81]
[1646566915668,1.57168515,86.566,86.485,57.81]
[1646566916072,1.57168515,86.567,86.501,116.1]
[1646566916270,1.57168515,86.588,86.501,116.1]
[1646566916470,1.57168515,86.59,86.502,17.4217181]
[1646566916670,1.57168515,86.592,86.502,39.65749702]
[1646566916869,1.57168515,86.592,86.503,62.28709702]
[1646566917070,1.57168515,86.589,86.504,18.72552701]
[1646566917270,1.57168515,86.589,86.504,36.14724511]
[1646566917469,1.57168515,86.589,86.505,17.4217181]
[1646566917870,1.57168515,86.589,86.506,17.4217181]
[1646566918070,1.57168515,86.589,86.52,17.3355]
[1646566918270,1.57168515,86.588,86.52,17.3355]
[1646566918470,5.776,86.587,86.52,17.3355]
[1646566918671,5.776,86.588,86.52,17.3355]
[1646566918871,5.776,86.59,86.52,17.3355]
[1646566919072,55.0687995,86.591,86.52,17.3355]
[1646566919273,53.49711435,86.591,86.52,17.3355]
[1646566919672,53.49711435,86.591,86.52,35.0362]
[1646566922275,116.1,86.589,86.52,17.7007]
[1646566922486,116.1,86.589,86.504,18.72552701]
[1646566922677,5.777,86.588,86.504,18.72552701]
[1646566923978,5.777,86.588,86.503,22.6296]
[1646566924178,116.1,86.579,86.503,22.6296]
[1646566924378,5.777,86.578,86.503,22.6296]
[1646566926578,116.1,86.577,86.503,22.6296]
[1646566926780,5.777,86.576,86.503,22.6296]
[1646566927181,116.1,86.575,86.503,22.6296]
[1646566927380,5.777,86.574,86.503,22.6296]
[1646566928282,121.877,86.574,86.503,22.6296]
[1646566929382,116.1,86.573,86.503,22.6296]
[1646566929581,116.1,86.573,86.495,24.5407]
[1646566929582,116.1,86.569,86.495,24.5407]
[1646566929781,116.1,86.567,86.495,24.5407]
[1646566929982,5.777,86.566,86.495,24.5407]
[1646566930585,116.1,86.564,86.495,24.5407]
[1646566930784,5.777,86.563,86.495,24.5407]
[1646566932485,121.877,86.564,86.495,24.5407]
[1646566933285,1.57168515,86.563,86.495,24.5407]
[1646566933490,5.777,86.562,86.495,24.5407]
[1646566933686,5.777,86.563,86.495,24.5407]
[1646566934285,7.34868515,86.563,86.495,24.5407]
[1646566934485,5.777,86.563,86.495,24.5407]
[1646566934886,0.1,86.558,86.495,24.5407]
[1646566935087,5.777,86.557,86.495,24.5407]
[1646566935691,24.2265,86.556,86.495,24.5407]
[1646566935890,5.777,86.555,86.495,24.5407]
[1646566936690,24.2265,86.556,86.495,24.5407]
[1646566937091,1.57168515,86.555,86.495,24.5407]
[1646566937490,1.57168515,86.554,86.495,24.5407]
[1646566938393,24.2265,86.556,86.5,17.3439]
[1646566938793,0.1,86.558,86.501,2.83613526]
[1646566939393,0.1,86.558,86.51,17.3403]
[1646566939813,0.1,86.558,86.511,2.83613526]
[1646566942714,0.1,86.558,86.511,19.99333526]
[1646566943014,0.1,86.558,86.512,2.83613526]
[1646566947417,1.57168515,86.556,86.512,2.83613526]
[1646566947818,1.57168515,86.555,86.51,17.3403]
[1646566948816,1.57168515,86.556,86.51,17.3403]
[1646566949418,1.57168515,86.553,86.51,17.3403]
[1646566951423,1.57168515,86.554,86.51,17.3403]
[1646566951622,1.57168515,86.553,86.51,17.3403]
[1646566951823,1.57168515,86.554,86.51,17.3403]
[1646566952025,1.57168515,86.553,86.51,17.3403]
[1646566952625,1.57168515,86.554,86.51,17.3403]
[1646566952826,1.57168515,86.554,86.51,39.57607892]
[1646566953124,1.57168515,86.555,86.51,39.57607892]
[1646566954025,1.57168515,86.554,86.51,39.57607892]
[1646566956124,1.57168515,86.557,86.51,39.57607892]
[1646566956328,1.57168515,86.556,86.511,39.36740918]
[1646566956525,0.1,86.558,86.52,17.3331]
[1646566956927,0.1,86.558,86.521,44.81408294]
[1646566957124,0.1,86.558,86.522,14.07161704]
[1646566957326,0.1,86.558,86.522,75.67480514]
[1646566957529,0.1,86.558,86.523,22.23577892]
[1646566957827,0.1,86.558,86.524,2.83613526]
[1646566958026,0.1,86.558,86.524,25.41443928]
[1646566958229,0.1,86.558,86.53,17.334]
[1646566958726,0.1,86.558,86.525,25.07191418]
[1646566958727,0.1,86.558,86.531,2.83613526]
[1646566960130,0.1,86.558,86.54,17.3358]
[1646566962931,0.1,86.558,86.54,34.4]
[1646566965336,0.1,86.558,86.518,2.83613526]
[1646566965634,0.1,86.558,86.496,47.03827892]
[1646566965841,0.07567509,86.558,86.498,2.83613526]
[1646566966335,0.07567509,86.558,86.498,25.07191418]
[1646566966533,0.07567509,86.558,86.499,85.29675397]
[1646566966741,24.52227509,86.558,86.498,25.07191418]
[1646566966940,1.57168515,86.549,86.497,23.4525]
[1646566967134,1.57168515,86.542,86.497,23.4525]
[1646566967534,1.57168515,86.543,86.497,23.4525]
[1646566967734,1.57168515,86.544,86.497,23.4525]
[1646566968534,1.57168515,86.543,86.496,24.8025]
[1646566968837,1.57168515,86.543,86.478,2.83613526]
[1646566969035,1.57168515,86.531,86.432,17.2886]
[1646566969235,5.781,86.53,86.458,2.83613526]
[1646566969437,1.57168515,86.529,86.458,2.83613526]
[1646566969635,5.78,86.528,86.458,2.83613526]
[1646566969835,63.60714278,86.527,86.459,62.0842554]
[1646566970035,87.23664278,86.527,86.459,62.0842554]
[1646566970238,87.23664278,86.527,86.46,17.3523]
[1646566970436,116.1,86.526,86.46,17.3523]
[1646566970636,87.23664278,86.527,86.46,17.3523]
[1646566971237,5.78,86.526,86.46,17.3523]
[1646566973464,5.78,86.526,86.461,5.78]
[1646566974445,87.23664278,86.527,86.461,5.78]
[1646566975443,5.78,86.526,86.46,17.3523]
[1646566975844,5.78,86.526,86.461,2.83613526]
[1646566976243,87.23664278,86.527,86.462,5.78]
[1646566976745,87.23664278,86.527,86.463,2.83613526]
[1646566976946,87.23664278,86.527,86.464,5.78]
[1646566977747,87.23664278,86.527,86.47,17.3504]
[1646566978749,87.23664278,86.527,86.464,5.78]
[1646566979152,116.1,86.526,86.464,8.61613526]
[1646566979349,5.78,86.525,86.464,2.83613526]
[1646566979549,5.78,86.525,86.459,67.8642554]
[1646566979755,5.78,86.525,86.459,62.0842554]
[1646566980153,5.78,86.525,86.46,17.3527]
[1646566980652,5.78,86.526,86.46,17.3527]
[1646566982172,121.88,86.526,86.46,17.3527]
[1646566982378,121.88,86.526,86.459,62.0842554]
[1646566982573,127.84,86.526,86.459,62.0842554]
[1646566983273,11.74,86.526,86.459,62.0842554]
[1646566983872,5.78,86.526,86.459,62.0842554]
[1646566984074,5.78,86.526,86.46,17.3526]
[1646566984472,1.57168515,86.542,86.46,17.3526]
[1646566984473,5.78,86.555,86.461,116.1]
[1646566984672,24.7148,86.555,86.461,180.1590092]
[1646566984873,24.7148,86.555,86.462,16.98968183]
[1646566985075,5.779,86.554,86.462,59.55567989]
[1646566985273,48.79725684,86.553,86.48,17.34]
[1646566985473,5.779,86.552,86.48,17.34]
[1646566985673,5.779,86.552,86.481,14.15354657]
[1646566986774,5.779,86.552,86.49,17.3458]
[1646566987374,7.35068515,86.552,86.49,17.3458]
[1646566987974,7.35068515,86.552,86.482,24.8452]
[1646566988175,116.1,86.551,86.482,24.8452]
[1646566988374,116.1,86.549,86.482,24.8452]
[1646566988575,5.779,86.548,86.482,24.8452]
[1646566988777,1.57168515,86.547,86.469,14.15354657]
[1646566988977,1.57168515,86.539,86.458,2.83613526]
[1646566989177,1.57168515,86.539,86.452,23.7065]
[1646566989378,116.1,86.519,86.452,23.7065]
[1646566989678,116.1,86.517,86.452,23.7065]
[1646566990183,116.1,86.515,86.452,23.7065]
[1646566990379,116.1,86.509,86.451,5.78]
[1646566990582,116.1,86.507,86.43,17.3574]
[1646566991182,5.782,86.506,86.424,22.22412737]
[1646566991380,116.1,86.499,86.424,22.22412737]
[1646566991581,116.1,86.499,86.422,17.2241]
[1646566991582,5.782,86.498,86.422,17.2241]
[1646566991980,7.35368515,86.498,86.422,17.2241]
[1646566992180,139.6743,86.497,86.422,17.2241]
[1646566992385,5.783,86.496,86.422,17.2241]
[1646566992586,49.17135286,86.489,86.422,17.2241]
[1646566992983,49.17135286,86.489,86.422,39.21075204]
[1646566993584,5.783,86.488,86.422,39.21075204]
[1646566994587,5.783,86.488,86.422,17.2241]
[1646566994785,121.883,86.488,86.422,17.2241]
[1646566994986,5.783,86.488,86.422,17.2241]
[1646566995684,49.17135286,86.489,86.422,17.2241]
[1646566995685,1.57168515,86.489,86.422,17.2241]
[1646566995885,23.5743,86.497,86.423,2.83613526]
[1646566996284,23.5743,86.497,86.424,21.98665204]
[1646566996484,23.5743,86.497,86.424,42.32852273]
[1646566996685,23.5743,86.497,86.425,2.83613526]
[1646566996885,23.5743,86.497,86.43,17.3589]
[1646566997086,5.782,86.51,86.43,17.3589]
[1646566997287,24.1761,86.515,86.431,35.62365034]
[1646566997487,24.1761,86.515,86.432,116.1]
[1646566997685,24.1761,86.515,86.432,173.70699132]
[1646566997885,1.57168515,86.529,86.438,116.1]
[1646566998089,24.81828515,86.534,86.45,17.3435]
[1646566998287,24.81828515,86.534,86.451,24.00954787]
[1646566998486,24.81828515,86.534,86.451,61.2746685]
[1646566998887,24.81828515,86.534,86.452,37.26512063]
[1646566999287,24.81828515,86.534,86.453,37.26512063]
[1646566999488,23.2466,86.534,86.453,37.26512063]
[1646566999689,23.2466,86.534,86.454,15.28177965]
[1646566999888,23.2466,86.534,86.454,37.26512063]
[1646567000088,23.2466,86.534,86.47,17.3476]
[1646567002189,23.2466,86.534,86.471,2.83613526]
[1646567002390,23.2466,86.534,86.48,17.3464]
[1646567002590,23.2466,86.534,86.481,50.14879317]
[1646567003790,23.2466,86.534,86.49,17.3464]
[1646567004790,1.57168515,86.547,86.49,17.3464]
[1646567004991,1.57168515,86.547,86.491,2.83613526]
[1646567005191,1.64736024,86.558,86.5,17.3367]
[1646567005391,0.07567509,86.558,86.5,17.3367]
[1646567005592,0.07567509,86.558,86.501,2.83613526]
[1646567006391,0.07567509,86.558,86.51,17.3377]
[1646567006591,0.07567509,86.558,86.511,24.00954787]
[1646567008093,0.07567509,86.558,86.485,2.83613526]
[1646567008296,1.57168515,86.557,86.485,2.83613526]
[1646567008495,1.57168515,86.556,86.485,2.83613526]
[1646567008694,7.34868515,86.557,86.485,2.83613526]
[1646567009094,61.06740855,86.556,86.49,17.3471]
[1646567009494,24.7391,86.555,86.49,17.3471]
[1646567010995,24.7391,86.555,86.491,2.83613526]
[1646567011198,140.8391,86.555,86.5,17.3449]
[1646567011396,1.57168515,86.553,86.486,58.49925993]
[1646567011595,5.779,86.552,86.486,58.49925993]
[1646567011796,5.779,86.552,86.459,12.44564439]
[1646567011797,1.57168515,86.542,86.451,17.1966]
[1646567011999,1.57168515,86.534,86.451,17.1966]
[1646567012301,1.57168515,86.536,86.46,17.3522]
[1646567012498,1.57168515,86.533,86.46,17.3522]
[1646567012695,5.78,86.532,86.461,50.09262443]
[1646567013095,5.78,86.534,86.462,2.83613526]
[1646567013298,5.78,86.536,86.462,2.83613526]
[1646567013498,7.35168515,86.536,86.462,2.83613526]
[1646567013696,5.78,86.536,86.462,2.83613526]
[1646567013897,1.57168515,86.536,86.462,2.83613526]
[1646567014099,1.57168515,86.536,86.47,17.3514]
[1646567014297,1.57168515,86.535,86.47,17.3514]
[1646567014498,1.57168515,86.536,86.47,17.3514]
[1646567014721,7.35168515,86.535,86.47,17.3514]
[1646567015303,1.57168515,86.534,86.47,17.3514]
[1646567015499,5.78,86.533,86.47,17.3514]
[1646567015700,5.78,86.534,86.47,17.3514]
[1646567016301,7.35168515,86.534,86.47,17.3514]
[1646567017308,5.78,86.534,86.47,17.3514]
[1646567017504,1.57168515,86.535,86.461,50.09262443]
[1646567017505,24.5846,86.54,86.49,17.3453]
[1646567017701,24.5846,86.54,86.491,24.06571661]
[1646567018102,5.779,86.544,86.491,24.06571661]
[1646567018303,23.1692,86.551,86.492,2.83613526]
[1646567018903,24.7863,86.555,86.492,2.83613526]
[1646567019103,24.7863,86.555,86.5,17.3453]
[1646567019303,5.777,86.551,86.5,17.3453]
[1646567019702,24.7863,86.555,86.501,2.83613526]
[1646567021013,0.07567509,86.558,86.501,2.83613526]
[1646567021014,0.07567509,86.558,86.51,17.339]
[1646567021407,0.07567509,86.558,86.511,2.83613526]
[1646567021909,0.07567509,86.558,86.521,45.69815034]
[1646567024231,0.07567509,86.558,86.53,17.339]
[1646567035249,0.07567509,86.558,86.54,17.3357]
[1646567038155,0.07567509,86.558,86.523,5.777]
[1646567038354,0.07567509,86.558,86.53,57.7755]
[1646567038552,0.07567509,86.558,86.531,5.777]
[1646567038752,0.07567509,86.558,86.531,8.61313526]
[1646567039155,0.07567509,86.558,86.532,2.83613526]
[1646567039353,0.07567509,86.558,86.533,5.777]
[1646567039754,0.07567509,86.558,86.54,17.3368]
[1646567039953,0.07567509,86.558,86.541,5.777]
[1646567040154,0.07567509,86.558,86.541,8.61313526]
[1646567040556,0.07567509,86.558,86.542,2.83613526]
[1646567040756,0.07567509,86.558,86.543,5.777]
[1646567040978,5.777,86.627,86.56,17.3224]
[1646567041259,1.56955964,86.61,86.561,5.774]
[1646567041455,22.9556,86.649,86.561,5.774]
[1646567041456,22.9556,86.649,86.561,52.32027359]
[1646567041661,22.9556,86.649,86.562,8.60913526]
[1646567041955,22.9556,86.649,86.565,116.1]
[1646567042156,22.9556,86.649,86.58,17.322]
[1646567042357,6.31595461,86.648,86.581,51.47015034]
[1646567042556,6.31595461,86.648,86.581,54.3062856]
[1646567042956,6.31595461,86.648,86.582,2.83613526]
[1646567043157,6.31595461,86.648,86.566,23.2705]
[1646567043357,3.14428955,86.639,86.566,23.2705]
[1646567043756,5.773,86.638,86.566,23.2705]
[1646567043957,24.7307,86.637,86.566,23.2705]
[1646567044160,48.54303229,86.636,86.567,5.773]
[1646567044358,48.54303229,86.636,86.57,17.3315]
[1646567044560,48.54303229,86.636,86.571,5.773]
[1646567044760,48.54303229,86.636,86.567,5.773]
[1646567045159,48.54303229,86.636,86.568,45.51659985]
[1646567045360,6.3170094,86.635,86.566,23.2705]
[1646567045960,5.773,86.634,86.566,23.2705]
[1646567046160,6.3170094,86.633,86.58,17.3295]
[1646567046560,122.4170094,86.634,86.554,2.83613526]
[1646567046762,3.14428955,86.629,86.554,2.83613526]
[1646567046960,5.774,86.628,86.554,2.83613526]
[1646567047159,6.3170094,86.627,86.554,2.83613526]
[1646567047360,5.774,86.626,86.554,2.83613526]
[1646567047660,6.3170094,86.625,86.56,17.3317]
[1646567047860,5.774,86.624,86.56,17.3317]
[1646567048059,67.03968838,86.623,86.56,17.3317]
[1646567048260,6.3170094,86.622,86.56,17.3317]
[1646567049961,5.774,86.621,86.56,17.3317]
[1646567050164,6.3170094,86.62,86.56,34.736]
[1646567050461,5.774,86.619,86.56,34.736]
[1646567050660,6.3170094,86.618,86.56,34.736]
[1646567050864,116.1,86.617,86.554,2.83613526]
[1646567051068,116.1,86.615,86.54,2.83613526]
[1646567051263,3.14428955,86.606,86.54,2.83613526]
[1646567051462,22.5743,86.605,86.53,5.775]
[1646567051662,121.875,86.604,86.52,30.4497]
[1646567051865,52.70394721,86.603,86.521,56.68046176]
[1646567052063,17.3411,86.6,86.53,17.3389]
[1646567052563,6.3170094,86.599,86.53,17.3389]
[1646567054465,116.1,86.596,86.53,17.3389]
[1646567054663,116.1,86.596,86.428,41.84312826]
[1646567054664,116.1,86.585,86.506,5.776]
[1646567054865,3.14428955,86.579,86.446,53.0844]
[1646567055064,3.14428955,86.565,86.446,74.80774098]
[1646567055264,52.533,86.564,86.45,5.75931602]
[1646567055465,63.08445794,86.563,86.451,66.35649543]
[1646567055663,56.76744854,86.563,86.452,116.1]
[1646567055864,56.76744854,86.563,86.453,5.779]
[1646567056163,56.76744854,86.563,86.48,17.3459]
[1646567056363,56.76744854,86.563,86.481,42.23006046]
[1646567056765,56.76744854,86.563,86.481,63.95340144]
[1646567057867,56.76744854,86.563,86.5,17.3429]
[1646567058066,56.76744854,86.563,86.501,65.23147041]
[1646567058266,46.754,86.564,86.501,65.23147041]
[1646567058467,46.754,86.564,86.501,86.95481139]
[1646567058665,3.14428955,86.596,86.502,21.72334098]
[1646567058867,48.4181,86.595,86.503,5.777]
[1646567059168,56.49763893,86.594,86.51,17.342]
[1646567059365,12.09546451,86.593,86.51,17.342]
[1646567059569,5.776,86.593,86.51,17.342]
[1646567059765,6.31946316,86.592,86.51,17.342]
[1646567059965,5.776,86.591,86.51,17.342]
[1646567060165,5.776,86.593,86.51,17.342]
[1646567061068,6.31945431,86.592,86.51,17.342]
[1646567061267,5.776,86.591,86.51,17.342]
[1646567061669,5.776,86.593,86.51,17.342]
[1646567061869,5.776,86.593,86.51,34.6639]
[1646567062072,6.31944614,86.592,86.51,34.6639]
[1646567062371,5.776,86.591,86.51,34.6639]
[1646567062569,5.776,86.593,86.511,5.776]
[1646567062770,6.31948771,86.592,86.53,17.3374]
[1646567062971,5.776,86.591,86.531,13.13218548]
[1646567063592,5.776,86.593,86.531,13.13218548]
[1646567064093,6.31943701,86.592,86.531,13.13218548]
[1646567064294,5.776,86.591,86.531,13.13218548]
[1646567064697,5.776,86.593,86.531,13.13218548]
[1646567065096,6.31948384,86.592,86.531,13.13218548]
[1646567065295,5.776,86.591,86.531,13.13218548]
[1646567065495,5.776,86.591,86.532,5.776]
[1646567065698,5.776,86.593,86.532,5.776]
[1646567065895,6.31947125,86.592,86.532,5.776]
[1646567066095,5.776,86.591,86.532,5.776]
[1646567066695,5.776,86.593,86.532,5.776]
[1646567066895,6.31946446,86.592,86.532,5.776]
[1646567067096,5.776,86.591,86.532,5.776]
[1646567067300,5.776,86.593,86.532,5.776]
[1646567067897,5.776,86.593,86.532,22.9294]
[1646567068097,6.31943369,86.592,86.532,22.9294]
[1646567068296,5.776,86.591,86.532,22.9294]
[1646567068496,5.776,86.593,86.532,22.9294]
[1646567068896,6.31950178,86.592,86.532,22.9294]
[1646567069098,5.776,86.591,86.532,22.9294]
[1646567069498,5.776,86.593,86.532,22.9294]
[1646567071106,6.31944052,86.592,86.532,22.9294]
[1646567071307,5.776,86.591,86.532,22.9294]
[1646567071806,5.776,86.593,86.532,22.9294]
[1646567072107,6.31944119,86.592,86.532,22.9294]
[1646567073509,6.31944119,86.592,86.54,17.3369]
[1646567076110,6.31944119,86.593,86.54,17.3369]
[1646567077410,3.14428955,86.592,86.54,17.3369]
[1646567078011,3.14428955,86.592,86.532,22.9294]
[1646567078214,5.776,86.591,86.454,7.19212221]
[1646567078412,3.14428955,86.571,86.47,23.6937]
[1646567078612,3.14428955,86.57,86.47,23.6937]
[1646567078812,3.14428955,86.567,86.47,23.6937]
[1646567079012,17.3497,86.55,86.48,17.3479]